[Event "Late-Titled-Tuesday-Blitz-February-13-2024"]
[Site "Chess.com"]
[Date "2024.02.13"]
[Round "10"]
[White "IraZyne"]
[Black "Doudou2015"]
[Result "1-0"]
[WhiteElo "2339"]
[BlackElo "2192"]
[TimeControl "180+1"]
[EndTime "15:53:40 PST"]
[Termination "IraZyne won on time"]

1. e4 {[%clk 0:02:55.2]} 1... c5 {[%clk 0:01:36.1]} 2. Nc3 {[%clk 0:02:54]} 2...
Nc6 {[%clk 0:01:33.4]} 3. g3 {[%clk 0:02:53.9]} 3... e5 {[%clk 0:01:27.2]} 4.
Bg2 {[%clk 0:02:52.3]} 4... d6 {[%clk 0:01:27.6]} 5. d3 {[%clk 0:02:52.3]} 5...
h6 {[%clk 0:01:26.3]} 6. Nh3 {[%clk 0:02:51.8]} 6... Nd4 {[%clk 0:01:22]} 7. O-O
{[%clk 0:02:49.1]} 7... g5 {[%clk 0:01:21.1]} 8. f4 {[%clk 0:02:46.6]} 8... exf4
{[%clk 0:01:12.3]} 9. gxf4 {[%clk 0:02:45.9]} 9... g4 {[%clk 0:01:03.9]} 10. Nf2
{[%clk 0:02:44.8]} 10... h5 {[%clk 0:00:58.1]} 11. Nd5 {[%clk 0:02:26.8]} 11...
Nf6 {[%clk 0:00:54.2]} 12. c3 {[%clk 0:02:21.8]} 12... Nxd5 {[%clk 0:00:53.5]}
13. cxd4 {[%clk 0:02:17.3]} 13... Nf6 {[%clk 0:00:53]} 14. Be3 {[%clk
0:02:10.3]} 14... Bg7 {[%clk 0:00:50.8]} 15. Rc1 {[%clk 0:02:07.8]} 15... cxd4
{[%clk 0:00:49.8]} 16. Bxd4 {[%clk 0:02:06.6]} 16... O-O {[%clk 0:00:48.7]} 17.
Bc3 {[%clk 0:02:03.5]} 17... Be6 {[%clk 0:00:44.3]} 18. b3 {[%clk 0:02:00.8]}
18... Rc8 {[%clk 0:00:42.7]} 19. Qd2 {[%clk 0:02:00.8]} 19... Qb6 {[%clk
0:00:20.4]} 20. Kh1 {[%clk 0:01:56.9]} 20... Rfd8 {[%clk 0:00:17.5]} 21. f5
{[%clk 0:01:53]} 21... Bd7 {[%clk 0:00:16.7]} 22. d4 {[%clk 0:01:51.7]} 22...
Bb5 {[%clk 0:00:15.8]} 23. Rfe1 {[%clk 0:01:50.2]} 23... Re8 {[%clk 0:00:14.7]}
24. Nd3 {[%clk 0:01:46.2]} 24... a5 {[%clk 0:00:13.6]} 25. Nf4 {[%clk
0:01:35.5]} 25... a4 {[%clk 0:00:11.7]} 26. e5 {[%clk 0:01:32.5]} 26... dxe5
{[%clk 0:00:10.3]} 27. dxe5 {[%clk 0:01:31.5]} 27... Rcd8 {[%clk 0:00:08.8]} 28.
Qc2 {[%clk 0:01:27]} 28... Nd7 {[%clk 0:00:03.3]} 29. e6 {[%clk 0:01:23.5]}
29... Ne5 {[%clk 0:00:01.4]} 30. Nxh5 {[%clk 0:01:19.4]} 1-0

[Event "Late-Titled-Tuesday-Blitz-February-13-2024"]
[Site "Chess.com"]
[Date "2024.02.13"]
[Round "10"]
[White "sansanathalia"]
[Black "RantomOpening"]
[Result "0-1"]
[WhiteElo "2382"]
[BlackElo "2516"]
[TimeControl "180+1"]
[EndTime "15:53:46 PST"]
[Termination "RantomOpening won by resignation"]

1. d4 {[%clk 0:02:42.5]} 1... d5 {[%clk 0:03:00.1]} 2. Nf3 {[%clk 0:02:38.3]}
2... e6 {[%clk 0:03:00.6]} 3. Nbd2 {[%clk 0:02:34.2]} 3... Nf6 {[%clk
0:02:59.4]} 4. e3 {[%clk 0:02:31.7]} 4... Be7 {[%clk 0:02:59.9]} 5. Be2 {[%clk
0:02:30.9]} 5... O-O {[%clk 0:03:00.8]} 6. O-O {[%clk 0:02:29.9]} 6... b6 {[%clk
0:03:01.7]} 7. b3 {[%clk 0:02:28.9]} 7... Bb7 {[%clk 0:03:02.3]} 8. Bb2 {[%clk
0:02:28.4]} 8... Nbd7 {[%clk 0:03:03]} 9. c4 {[%clk 0:02:26.2]} 9... c5 {[%clk
0:03:03.4]} 10. cxd5 {[%clk 0:02:24.4]} 10... exd5 {[%clk 0:03:04.3]} 11. Rc1
{[%clk 0:02:24.2]} 11... Rc8 {[%clk 0:03:02.1]} 12. Ne5 {[%clk 0:02:20.7]} 12...
Nxe5 {[%clk 0:03:01.8]} 13. dxe5 {[%clk 0:02:15]} 13... Ne4 {[%clk 0:03:02.2]}
14. Nxe4 {[%clk 0:02:14.2]} 14... dxe4 {[%clk 0:03:03.1]} 15. Qc2 {[%clk
0:02:13.6]} 15... Qc7 {[%clk 0:02:58.1]} 16. Rfd1 {[%clk 0:02:10.7]} 16... Rcd8
{[%clk 0:02:58.3]} 17. Rxd8 {[%clk 0:02:06.6]} 17... Rxd8 {[%clk 0:02:59.2]} 18.
Rd1 {[%clk 0:02:06.8]} 18... Rxd1+ {[%clk 0:02:56.4]} 19. Qxd1 {[%clk
0:02:06.8]} 19... Qd8 {[%clk 0:02:57]} 20. Qxd8+ {[%clk 0:02:05.9]} 20... Bxd8
{[%clk 0:02:57.9]} 21. Kf1 {[%clk 0:02:04.9]} 21... Kf8 {[%clk 0:02:57.5]} 22.
Ke1 {[%clk 0:02:05.2]} 22... Ke7 {[%clk 0:02:57.6]} 23. Kd2 {[%clk 0:02:05.5]}
23... Ke6 {[%clk 0:02:57.2]} 24. Bc4+ {[%clk 0:02:01.1]} 24... Bd5 {[%clk
0:02:56.8]} 25. Be2 {[%clk 0:02:00.1]} 25... Bc7 {[%clk 0:02:45.4]} 26. Bg4+
{[%clk 0:02:00.4]} 26... Ke7 {[%clk 0:02:45.9]} 27. f4 {[%clk 0:01:58.8]} 27...
exf3 {[%clk 0:02:45.2]} 28. gxf3 {[%clk 0:01:58.4]} 28... Be6 {[%clk 0:02:45.9]}
29. Bxe6 {[%clk 0:01:51.4]} 29... Kxe6 {[%clk 0:02:46.8]} 30. f4 {[%clk
0:01:50.7]} 30... Kf5 {[%clk 0:02:47.2]} 31. Kd3 {[%clk 0:01:50.7]} 31... Kg4
{[%clk 0:02:47.3]} 32. e6 {[%clk 0:01:49.7]} 32... fxe6 {[%clk 0:02:47.1]} 33.
Bxg7 {[%clk 0:01:49.4]} 33... Kh3 {[%clk 0:02:47.5]} 34. Ke4 {[%clk 0:01:48.9]}
34... Kxh2 {[%clk 0:02:47.4]} 35. f5 {[%clk 0:01:49.4]} 35... exf5+ {[%clk
0:02:44.2]} 36. Kxf5 {[%clk 0:01:50.3]} 36... Kg3 {[%clk 0:02:44]} 37. e4 {[%clk
0:01:48.4]} 37... h5 {[%clk 0:02:44.3]} 38. Bc3 {[%clk 0:01:42.8]} 38... Kf2
{[%clk 0:01:52]} 39. e5 {[%clk 0:01:29.1]} 39... h4 {[%clk 0:01:51.6]} 40. e6
{[%clk 0:01:26.2]} 40... Bd8 {[%clk 0:01:49.9]} 41. Bf6 {[%clk 0:00:50.9]} 41...
Bxf6 {[%clk 0:01:31.6]} 42. Kxf6 {[%clk 0:00:51.8]} 42... h3 {[%clk 0:01:32.5]}
43. e7 {[%clk 0:00:50.3]} 43... h2 {[%clk 0:01:33.4]} 44. e8=Q {[%clk
0:00:50.4]} 44... h1=Q {[%clk 0:01:34.3]} 45. Qa4 {[%clk 0:00:42.6]} 45... Qf3+
{[%clk 0:01:34.3]} 46. Ke6 {[%clk 0:00:41.1]} 46... Qe3+ {[%clk 0:01:29.1]} 47.
Kd6 {[%clk 0:00:40.3]} 47... Qd4+ {[%clk 0:01:24.6]} 0-1

[Event "Late-Titled-Tuesday-Blitz-February-13-2024"]
[Site "Chess.com"]
[Date "2024.02.13"]
[Round "10"]
[White "Boninknights"]
[Black "DonJuan_34"]
[Result "1-0"]
[WhiteElo "2378"]
[BlackElo "2477"]
[TimeControl "180+1"]
[EndTime "15:53:46 PST"]
[Termination "Boninknights won by resignation"]

1. d4 {[%clk 0:02:59.9]} 1... Nf6 {[%clk 0:02:56.1]} 2. Nf3 {[%clk 0:02:59.2]}
2... g6 {[%clk 0:02:55.1]} 3. c4 {[%clk 0:02:58.7]} 3... Bg7 {[%clk 0:02:55]} 4.
Nc3 {[%clk 0:02:58.5]} 4... O-O {[%clk 0:02:54.8]} 5. e4 {[%clk 0:02:58.3]} 5...
d6 {[%clk 0:02:55.4]} 6. Be2 {[%clk 0:02:58.1]} 6... e5 {[%clk 0:02:55.4]} 7.
dxe5 {[%clk 0:02:57.5]} 7... dxe5 {[%clk 0:02:55.2]} 8. Qxd8 {[%clk 0:02:56.3]}
8... Rxd8 {[%clk 0:02:56.1]} 9. Bg5 {[%clk 0:02:55.2]} 9... Re8 {[%clk
0:02:53.4]} 10. Nd5 {[%clk 0:02:54.1]} 10... Nxd5 {[%clk 0:02:53.2]} 11. cxd5
{[%clk 0:02:53.7]} 11... c6 {[%clk 0:02:53.8]} 12. Bc4 {[%clk 0:02:52.7]} 12...
b5 {[%clk 0:02:54.2]} 13. Bb3 {[%clk 0:02:51.8]} 13... a5 {[%clk 0:02:52.7]} 14.
a4 {[%clk 0:02:50.3]} 14... b4 {[%clk 0:02:42.5]} 15. O-O {[%clk 0:02:44.1]}
15... Bb7 {[%clk 0:02:36.8]} 16. Rac1 {[%clk 0:02:41.6]} 16... h6 {[%clk
0:02:03.4]} 17. Be3 {[%clk 0:02:35.9]} 17... Bf8 {[%clk 0:02:01.7]} 18. Rfd1
{[%clk 0:02:30]} 18... cxd5 {[%clk 0:01:59.8]} 19. Rc7 {[%clk 0:02:28.3]} 19...
Re7 {[%clk 0:01:58.7]} 20. Rxb7 {[%clk 0:02:25.9]} 20... Rxb7 {[%clk 0:01:57.8]}
21. Bxd5 {[%clk 0:02:25.4]} 21... Raa7 {[%clk 0:01:55.4]} 22. Bxa7 {[%clk
0:02:18.9]} 22... Rxa7 {[%clk 0:01:55.1]} 23. Nxe5 {[%clk 0:02:18.8]} 23... Bg7
{[%clk 0:01:49.9]} 24. Nxf7 {[%clk 0:02:12.9]} 24... Rxf7 {[%clk 0:01:47.8]} 25.
Bxf7+ {[%clk 0:02:05]} 25... Kxf7 {[%clk 0:01:47.8]} 26. Rd5 {[%clk 0:02:03]}
26... Nc6 {[%clk 0:01:47.2]} 27. Rc5 {[%clk 0:02:02.5]} 27... Nd4 {[%clk
0:01:33.5]} 28. Rxa5 {[%clk 0:02:00.1]} 28... Nc2 {[%clk 0:01:30]} 29. Ra7+
{[%clk 0:01:56.3]} 29... Kg8 {[%clk 0:01:29.4]} 30. Rxg7+ {[%clk 0:01:48.1]}
30... Kxg7 {[%clk 0:01:28.6]} 31. a5 {[%clk 0:01:47.7]} 31... Nd4 {[%clk
0:01:25.2]} 32. a6 {[%clk 0:01:47.5]} 32... Nc6 {[%clk 0:01:25.3]} 33. f4 {[%clk
0:01:46.2]} 33... Kf6 {[%clk 0:01:22.7]} 34. Kf2 {[%clk 0:01:45.1]} 34... Ke6
{[%clk 0:01:22.6]} 35. Ke3 {[%clk 0:01:44.3]} 35... Kd6 {[%clk 0:01:21.5]} 36.
Kd3 {[%clk 0:01:38.7]} 36... Kc5 {[%clk 0:01:21]} 37. e5 {[%clk 0:01:34.4]}
37... Kd5 {[%clk 0:01:19.8]} 38. b3 {[%clk 0:01:32.9]} 38... g5 {[%clk
0:01:18.1]} 39. g3 {[%clk 0:01:31.2]} 39... h5 {[%clk 0:01:16.8]} 40. fxg5
{[%clk 0:01:28.5]} 40... Nxe5+ {[%clk 0:01:05.2]} 41. Ke3 {[%clk 0:01:27.3]}
41... Ng4+ {[%clk 0:00:58.8]} 42. Kf4 {[%clk 0:01:26.6]} 42... Kc6 {[%clk
0:00:46.8]} 43. h4 {[%clk 0:01:22.2]} 43... Kb6 {[%clk 0:00:45.4]} 44. g6 {[%clk
0:01:20.5]} 44... Kxa6 {[%clk 0:00:44.8]} 45. Kg5 {[%clk 0:01:20]} 45... Ne5
{[%clk 0:00:41.2]} 46. g7 {[%clk 0:01:19.2]} 46... Nf7+ {[%clk 0:00:41.2]} 47.
Kg6 {[%clk 0:01:18.8]} 1-0

[Event "Late-Titled-Tuesday-Blitz-February-13-2024"]
[Site "Chess.com"]
[Date "2024.02.13"]
[Round "10"]
[White "LiemLe"]
[Black "baki83"]
[Result "1-0"]
[WhiteElo "3027"]
[BlackElo "2868"]
[TimeControl "180+1"]
[EndTime "15:53:47 PST"]
[Termination "LiemLe won by resignation"]

1. Nf3 {[%clk 0:03:00.9]} 1... d5 {[%clk 0:03:00.2]} 2. e3 {[%clk 0:03:00.8]}
2... Nf6 {[%clk 0:03:00.1]} 3. c4 {[%clk 0:03:01.3]} 3... e6 {[%clk 0:03:00]} 4.
b3 {[%clk 0:03:00.7]} 4... b6 {[%clk 0:03:00.5]} 5. Bb2 {[%clk 0:02:59.5]} 5...
Bb7 {[%clk 0:03:01.2]} 6. Nc3 {[%clk 0:03:00.1]} 6... Nbd7 {[%clk 0:03:01.8]} 7.
Rc1 {[%clk 0:02:55.8]} 7... a6 {[%clk 0:03:02.3]} 8. cxd5 {[%clk 0:02:51.3]}
8... exd5 {[%clk 0:03:01.6]} 9. Ne2 {[%clk 0:02:51.1]} 9... c5 {[%clk
0:02:58.4]} 10. d4 {[%clk 0:02:45.3]} 10... g6 {[%clk 0:02:57.1]} 11. Nf4 {[%clk
0:02:30.6]} 11... Bg7 {[%clk 0:02:56.6]} 12. Be2 {[%clk 0:02:22.2]} 12... O-O
{[%clk 0:02:56]} 13. O-O {[%clk 0:02:22.6]} 13... Re8 {[%clk 0:02:48.9]} 14. Rc2
{[%clk 0:02:21]} 14... Rc8 {[%clk 0:02:47.6]} 15. Qa1 {[%clk 0:02:17.9]} 15...
Ne4 {[%clk 0:02:41.7]} 16. dxc5 {[%clk 0:02:08.7]} 16... Bxb2 {[%clk 0:02:41.8]}
17. Qxb2 {[%clk 0:02:09.6]} 17... bxc5 {[%clk 0:02:42.1]} 18. Rd1 {[%clk
0:02:08.7]} 18... Nb6 {[%clk 0:02:22.7]} 19. Bd3 {[%clk 0:02:06]} 19... Qf6
{[%clk 0:02:17.9]} 20. Qc1 {[%clk 0:02:01.6]} 20... c4 {[%clk 0:02:07.9]} 21.
Bxe4 {[%clk 0:01:57.7]} 21... Rxe4 {[%clk 0:02:05.1]} 22. Nd4 {[%clk 0:01:54.9]}
22... a5 {[%clk 0:01:58.9]} 23. Qb1 {[%clk 0:01:25]} 23... Ba6 {[%clk 0:01:51]}
24. h3 {[%clk 0:01:11.6]} 24... Ree8 {[%clk 0:01:45.7]} 25. Nde2 {[%clk
0:01:07.2]} 25... Qg5 {[%clk 0:01:38.3]} 26. Nc3 {[%clk 0:01:02.8]} 26... Red8
{[%clk 0:01:26.2]} 27. bxc4 {[%clk 0:00:50.3]} 27... Nxc4 {[%clk 0:01:25.2]} 28.
Ncxd5 {[%clk 0:00:23.3]} 28... Na3 {[%clk 0:01:23.7]} 29. Qb2 {[%clk 0:00:23.6]}
29... Nxc2 {[%clk 0:01:03.6]} 30. Nf6+ {[%clk 0:00:14.7]} 1-0

[Event "Late-Titled-Tuesday-Blitz-February-13-2024"]
[Site "Chess.com"]
[Date "2024.02.13"]
[Round "10"]
[White "fmcabralis"]
[Black "TheAlienParty"]
[Result "0-1"]
[WhiteElo "2253"]
[BlackElo "2411"]
[TimeControl "180+1"]
[EndTime "15:53:59 PST"]
[Termination "TheAlienParty won by checkmate"]

1. e4 {[%clk 0:03:00.9]} 1... e5 {[%clk 0:02:58.8]} 2. Nf3 {[%clk 0:03:01]} 2...
Nc6 {[%clk 0:02:58.4]} 3. Bb5 {[%clk 0:03:01.6]} 3... a6 {[%clk 0:02:57.8]} 4.
Ba4 {[%clk 0:03:02.1]} 4... d6 {[%clk 0:02:57.3]} 5. O-O {[%clk 0:02:56.4]} 5...
Bd7 {[%clk 0:02:56.8]} 6. c3 {[%clk 0:02:56.8]} 6... g5 {[%clk 0:02:55.8]} 7. d4
{[%clk 0:02:51.3]} 7... g4 {[%clk 0:02:55.7]} 8. Ne1 {[%clk 0:02:27.6]} 8... h5
{[%clk 0:02:55.1]} 9. f3 {[%clk 0:02:21]} 9... Bh6 {[%clk 0:02:52.3]} 10. fxg4
{[%clk 0:02:10.8]} 10... hxg4 {[%clk 0:02:51.6]} 11. Qb3 {[%clk 0:02:07.1]}
11... Rh7 {[%clk 0:02:36.1]} 12. Bxh6 {[%clk 0:01:57.6]} 12... b5 {[%clk
0:02:34.2]} 13. Be3 {[%clk 0:01:22.1]} 13... Qh4 {[%clk 0:02:22.7]} 14. Nd2
{[%clk 0:00:41.7]} 14... bxa4 {[%clk 0:02:17.2]} 15. Qc2 {[%clk 0:00:26.1]}
15... Qxh2+ {[%clk 0:02:02.3]} 16. Kf2 {[%clk 0:00:26.1]} 16... Qh5 {[%clk
0:01:29.6]} 17. g3 {[%clk 0:00:18.6]} 17... Qh2+ {[%clk 0:01:24.8]} 18. Ng2
{[%clk 0:00:18.4]} 18... Rh3 {[%clk 0:01:24]} 19. Rg1 {[%clk 0:00:07.4]} 19...
Qxg3+ {[%clk 0:01:22.4]} 20. Ke2 {[%clk 0:00:06.1]} 20... Rh2 {[%clk 0:01:10.1]}
21. Kf1 {[%clk 0:00:02.8]} 21... Rxg2 {[%clk 0:01:06.1]} 22. Rxg2 {[%clk
0:00:02.9]} 22... Qxe3 {[%clk 0:01:06.2]} 23. Re1 {[%clk 0:00:02]} 23... Qf4+
{[%clk 0:01:02.3]} 24. Rf2 {[%clk 0:00:02.4]} 24... Qg5 {[%clk 0:00:59.2]} 25.
Ke2 {[%clk 0:00:02.7]} 25... g3 {[%clk 0:00:58.4]} 26. Rg2 {[%clk 0:00:02.7]}
26... exd4 {[%clk 0:00:57.7]} 27. Kf3 {[%clk 0:00:03.1]} 27... Qg4# {[%clk
0:00:53.6]} 0-1

[Event "Late-Titled-Tuesday-Blitz-February-13-2024"]
[Site "Chess.com"]
[Date "2024.02.13"]
[Round "10"]
[White "deribas12345"]
[Black "KaydenTroffChess"]
[Result "0-1"]
[WhiteElo "2632"]
[BlackElo "2828"]
[TimeControl "180+1"]
[EndTime "15:54:02 PST"]
[Termination "KaydenTroffChess won by resignation"]

1. d4 {[%clk 0:02:57.9]} 1... Nf6 {[%clk 0:02:59.8]} 2. c4 {[%clk 0:02:56.9]}
2... g6 {[%clk 0:02:59.8]} 3. Nc3 {[%clk 0:02:56.3]} 3... d5 {[%clk 0:03:00.2]}
4. Bg5 {[%clk 0:02:55.9]} 4... Ne4 {[%clk 0:02:58.9]} 5. Bh4 {[%clk 0:02:56.2]}
5... Nxc3 {[%clk 0:02:59.1]} 6. bxc3 {[%clk 0:02:57.1]} 6... dxc4 {[%clk
0:02:59.8]} 7. Nf3 {[%clk 0:02:57.4]} 7... Nd7 {[%clk 0:02:59.5]} 8. e4 {[%clk
0:02:52.5]} 8... Nb6 {[%clk 0:02:59.4]} 9. Be2 {[%clk 0:02:52.2]} 9... Bg7
{[%clk 0:02:58.7]} 10. O-O {[%clk 0:02:40.9]} 10... O-O {[%clk 0:02:57.4]} 11.
h3 {[%clk 0:02:40.1]} 11... Bd7 {[%clk 0:02:52.9]} 12. Rb1 {[%clk 0:02:35.9]}
12... Ba4 {[%clk 0:02:50.6]} 13. Qd2 {[%clk 0:02:34.9]} 13... Qd7 {[%clk
0:02:43.6]} 14. Qf4 {[%clk 0:02:25.4]} 14... Qd6 {[%clk 0:02:33]} 15. Qe3 {[%clk
0:02:06.3]} 15... Rad8 {[%clk 0:02:16.4]} 16. Rb4 {[%clk 0:01:59.7]} 16... a5
{[%clk 0:02:15.4]} 17. Rbb1 {[%clk 0:01:45.1]} 17... Qa3 {[%clk 0:02:08]} 18.
Bg3 {[%clk 0:01:39.6]} 18... Rc8 {[%clk 0:01:52.2]} 19. Rfc1 {[%clk 0:01:25.6]}
19... Bc6 {[%clk 0:01:20]} 20. Nd2 {[%clk 0:01:17.8]} 20... e5 {[%clk
0:01:01.3]} 21. d5 {[%clk 0:00:51]} 21... Bd7 {[%clk 0:00:58.5]} 22. Bh4 {[%clk
0:00:36.3]} 22... f5 {[%clk 0:00:47.5]} 23. Bxc4 {[%clk 0:00:24.7]} 23... fxe4
{[%clk 0:00:40.5]} 24. Rb3 {[%clk 0:00:15]} 24... Qxc1+ {[%clk 0:00:38.6]} 25.
Kh2 {[%clk 0:00:14.6]} 25... Nxc4 {[%clk 0:00:38.8]} 0-1

[Event "Late-Titled-Tuesday-Blitz-February-13-2024"]
[Site "Chess.com"]
[Date "2024.02.13"]
[Round "10"]
[White "KorolDimitriy75"]
[Black "Semetey"]
[Result "0-1"]
[WhiteElo "2422"]
[BlackElo "2605"]
[TimeControl "180+1"]
[EndTime "15:54:08 PST"]
[Termination "Semetey won on time"]

1. d4 {[%clk 0:03:00.9]} 1... e6 {[%clk 0:02:50]} 2. c4 {[%clk 0:03:00.1]} 2...
b6 {[%clk 0:02:49.6]} 3. Nc3 {[%clk 0:03:00]} 3... Bb7 {[%clk 0:02:47.2]} 4. Qc2
{[%clk 0:02:59.8]} 4... f5 {[%clk 0:02:37.8]} 5. Nf3 {[%clk 0:02:58.3]} 5... Nf6
{[%clk 0:02:37.2]} 6. g3 {[%clk 0:02:58]} 6... Bb4 {[%clk 0:02:35.8]} 7. Bg2
{[%clk 0:02:57.8]} 7... O-O {[%clk 0:02:31.1]} 8. O-O {[%clk 0:02:57.8]} 8...
Bxc3 {[%clk 0:02:30.2]} 9. Qxc3 {[%clk 0:02:56.9]} 9... Be4 {[%clk 0:02:28.1]}
10. b3 {[%clk 0:02:44.3]} 10... Nc6 {[%clk 0:02:27.2]} 11. Bb2 {[%clk
0:02:44.1]} 11... Qe8 {[%clk 0:02:26.6]} 12. Nd2 {[%clk 0:02:12.1]} 12... Bxg2
{[%clk 0:02:24.7]} 13. Kxg2 {[%clk 0:02:13]} 13... Qh5 {[%clk 0:02:24.3]} 14.
Qf3 {[%clk 0:02:04.6]} 14... Qg6 {[%clk 0:02:16.9]} 15. Rfe1 {[%clk 0:01:52.2]}
15... Ne4 {[%clk 0:02:15]} 16. Nxe4 {[%clk 0:01:18.9]} 16... fxe4 {[%clk
0:02:13.2]} 17. Qe3 {[%clk 0:01:18.9]} 17... d5 {[%clk 0:02:07.4]} 18. Ba3
{[%clk 0:01:05.8]} 18... Rf6 {[%clk 0:02:05.5]} 19. Rac1 {[%clk 0:01:05.6]}
19... Qh5 {[%clk 0:02:04.2]} 20. f3 {[%clk 0:00:53.1]} 20... Rh6 {[%clk
0:01:51.4]} 21. Rh1 {[%clk 0:00:51.7]} 21... Qh3+ {[%clk 0:01:50.4]} 22. Kg1
{[%clk 0:00:51.8]} 22... Rd8 {[%clk 0:01:36.2]} 23. Kf2 {[%clk 0:00:12.1]} 23...
Rf6 {[%clk 0:01:34.3]} 24. Rcd1 {[%clk 0:00:06.8]} 24... Rd7 {[%clk 0:01:31.4]}
25. f4 {[%clk 0:00:02.8]} 25... Rdf7 {[%clk 0:01:29.7]} 26. Ke1 {[%clk
0:00:02.9]} 26... a5 {[%clk 0:01:24.3]} 27. Kd2 {[%clk 0:00:03.1]} 27... Nb4
{[%clk 0:01:15.2]} 28. Bxb4 {[%clk 0:00:03]} 28... axb4 {[%clk 0:01:16.1]} 29.
Rc1 {[%clk 0:00:03.4]} 29... Rf8 {[%clk 0:01:16]} 30. Rc2 {[%clk 0:00:03.3]}
30... Ra8 {[%clk 0:01:15]} 31. Rhc1 {[%clk 0:00:02.1]} 31... Qxh2 {[%clk
0:01:13.5]} 32. cxd5 {[%clk 0:00:01.8]} 32... exd5 {[%clk 0:01:13.9]} 33. Rxc7
{[%clk 0:00:01.7]} 33... Rxa2+ {[%clk 0:01:13.9]} 34. R1c2 {[%clk 0:00:02.3]}
34... Rxc2+ {[%clk 0:01:13.9]} 35. Kxc2 {[%clk 0:00:02.5]} 35... h6 {[%clk
0:01:12.9]} 36. Qd2 {[%clk 0:00:02]} 36... Kh7 {[%clk 0:01:12.3]} 37. e3 {[%clk
0:00:01.4]} 37... Qxg3 {[%clk 0:01:12]} 0-1

[Event "Late-Titled-Tuesday-Blitz-February-13-2024"]
[Site "Chess.com"]
[Date "2024.02.13"]
[Round "10"]
[White "Teidi96"]
[Black "Dewarfd"]
[Result "1-0"]
[WhiteElo "2286"]
[BlackElo "2158"]
[TimeControl "180+1"]
[EndTime "15:54:09 PST"]
[Termination "Teidi96 won on time"]

1. e4 {[%clk 0:03:00.9]} 1... c5 {[%clk 0:02:59.5]} 2. Nf3 {[%clk 0:03:01.5]}
2... g6 {[%clk 0:02:59.6]} 3. d4 {[%clk 0:03:01.7]} 3... cxd4 {[%clk 0:03:00.5]}
4. Nxd4 {[%clk 0:03:02.6]} 4... Nc6 {[%clk 0:03:00.3]} 5. c4 {[%clk 0:03:02.9]}
5... Nf6 {[%clk 0:03:00.1]} 6. Nc3 {[%clk 0:03:02.7]} 6... Bg7 {[%clk 0:03:00]}
7. Be3 {[%clk 0:03:01.4]} 7... O-O {[%clk 0:02:45.2]} 8. Be2 {[%clk 0:02:57.3]}
8... d6 {[%clk 0:02:36.1]} 9. O-O {[%clk 0:02:51.9]} 9... Ng4 {[%clk 0:01:47.2]}
10. Bxg4 {[%clk 0:02:37.6]} 10... Bxg4 {[%clk 0:00:38.4]} 11. Nxc6 {[%clk
0:02:35]} 11... Bxd1 {[%clk 0:00:37.5]} 12. Nxd8 {[%clk 0:02:35]} 12... Bxc3
{[%clk 0:00:34.2]} 13. bxc3 {[%clk 0:02:30.8]} 13... Be2 {[%clk 0:00:33.5]} 14.
Rfe1 {[%clk 0:02:31.2]} 14... Bxc4 {[%clk 0:00:33.4]} 15. Nxb7 {[%clk
0:02:30.8]} 15... a5 {[%clk 0:00:30]} 16. f3 {[%clk 0:02:15.1]} 16... Rfb8
{[%clk 0:00:27.4]} 17. Reb1 {[%clk 0:02:14]} 17... Bd3 {[%clk 0:00:19.7]} 18.
Rb2 {[%clk 0:02:10.8]} 18... a4 {[%clk 0:00:19.3]} 19. Rb4 {[%clk 0:02:01.3]}
19... a3 {[%clk 0:00:15.1]} 20. Na5 {[%clk 0:01:48.6]} 20... Rc8 {[%clk
0:00:10.2]} 21. Nb3 {[%clk 0:01:37.3]} 21... Rxc3 {[%clk 0:00:10]} 22. Rc1
{[%clk 0:01:37.8]} 22... Bc2 {[%clk 0:00:09.2]} 23. Nd4 {[%clk 0:01:34]} 23...
Rxe3 {[%clk 0:00:07.8]} 24. Rxc2 {[%clk 0:01:32]} 24... Kg7 {[%clk 0:00:07.6]}
25. Rb3 {[%clk 0:01:28.8]} 25... Rxb3 {[%clk 0:00:05.5]} 26. Nxb3 {[%clk
0:01:29.7]} 26... Rb8 {[%clk 0:00:06.1]} 27. Rc7 {[%clk 0:01:28.6]} 27... Kf6
{[%clk 0:00:04.8]} 28. Ra7 {[%clk 0:01:28.2]} 28... Rc8 {[%clk 0:00:04.2]} 29.
Rxa3 {[%clk 0:01:27.7]} 29... Rc2 {[%clk 0:00:04.1]} 30. h3 {[%clk 0:01:27.1]}
30... h5 {[%clk 0:00:04.2]} 31. Ra5 {[%clk 0:01:26.1]} 31... h4 {[%clk
0:00:04.2]} 32. Kh2 {[%clk 0:01:25.7]} 32... e5 {[%clk 0:00:03.6]} 33. Ra6
{[%clk 0:01:24.2]} 33... Kg5 {[%clk 0:00:03.9]} 34. Rxd6 {[%clk 0:01:21.1]}
34... Rxa2 {[%clk 0:00:03.9]} 35. Nd2 {[%clk 0:01:20.7]} 35... f6 {[%clk
0:00:02.6]} 36. Nc4 {[%clk 0:01:19.9]} 36... Rc2 {[%clk 0:00:01.5]} 37. Ne3
{[%clk 0:01:19.3]} 1-0

[Event "Late-Titled-Tuesday-Blitz-February-13-2024"]
[Site "Chess.com"]
[Date "2024.02.13"]
[Round "10"]
[White "Jahonas"]
[Black "DeArron_Fox"]
[Result "0-1"]
[WhiteElo "2385"]
[BlackElo "2520"]
[TimeControl "180+1"]
[EndTime "15:54:10 PST"]
[Termination "DeArron_Fox won by resignation"]

1. e4 {[%clk 0:03:00.9]} 1... c5 {[%clk 0:03:00.3]} 2. Nf3 {[%clk 0:03:01]} 2...
e6 {[%clk 0:03:01]} 3. d4 {[%clk 0:03:01.1]} 3... cxd4 {[%clk 0:03:01.9]} 4.
Nxd4 {[%clk 0:03:01.4]} 4... a6 {[%clk 0:03:02.6]} 5. Bd3 {[%clk 0:03:00.9]}
5... Bc5 {[%clk 0:03:02.4]} 6. Nb3 {[%clk 0:03:00.3]} 6... Ba7 {[%clk 0:03:03]}
7. O-O {[%clk 0:02:59.9]} 7... Ne7 {[%clk 0:03:03.6]} 8. Nc3 {[%clk 0:02:59.7]}
8... O-O {[%clk 0:03:04.2]} 9. Qe2 {[%clk 0:02:53.2]} 9... Nbc6 {[%clk
0:03:03.9]} 10. Be3 {[%clk 0:02:52.8]} 10... Bxe3 {[%clk 0:03:04.5]} 11. Qxe3
{[%clk 0:02:52.2]} 11... b5 {[%clk 0:03:00.3]} 12. a3 {[%clk 0:02:48.2]} 12...
Bb7 {[%clk 0:02:54.4]} 13. Rad1 {[%clk 0:02:46.5]} 13... d6 {[%clk 0:02:46.2]}
14. f4 {[%clk 0:02:44.7]} 14... Qc7 {[%clk 0:02:44.4]} 15. Rf2 {[%clk 0:02:42]}
15... b4 {[%clk 0:02:29]} 16. axb4 {[%clk 0:02:39.1]} 16... Nxb4 {[%clk
0:02:29.9]} 17. Rfd2 {[%clk 0:02:35]} 17... a5 {[%clk 0:02:13.4]} 18. Nd4 {[%clk
0:02:28.6]} 18... Qc5 {[%clk 0:01:57.8]} 19. Qf2 {[%clk 0:02:03.8]} 19... a4
{[%clk 0:01:42]} 20. Ndb5 {[%clk 0:01:56.2]} 20... Qxf2+ {[%clk 0:01:17.4]} 21.
Kxf2 {[%clk 0:01:54.5]} 21... d5 {[%clk 0:01:10.7]} 22. e5 {[%clk 0:01:49.4]}
22... Ba6 {[%clk 0:01:05.5]} 23. Nc7 {[%clk 0:01:41]} 23... Bxd3 {[%clk
0:00:51.2]} 24. Nxa8 {[%clk 0:01:26]} 24... Bxc2 {[%clk 0:00:50.4]} 25. Ra1
{[%clk 0:01:22.3]} 25... Rxa8 {[%clk 0:00:48.2]} 26. Rd4 {[%clk 0:01:03.5]}
26... Nec6 {[%clk 0:00:47.1]} 27. Rd2 {[%clk 0:00:57.7]} 27... d4 {[%clk
0:00:45.9]} 28. Nb5 {[%clk 0:00:57.5]} 28... d3 {[%clk 0:00:45.9]} 29. Ke3
{[%clk 0:00:53.2]} 29... Na5 {[%clk 0:00:34.3]} 30. Nd4 {[%clk 0:00:50.3]} 30...
Rd8 {[%clk 0:00:25.5]} 0-1